[Event "56th Rubinstein Memorial A 2020"]
[Site "Polanica Zdroj"]
[Date "2020.08.19"]
[Round "5.26"]
[White "Kowalczyk, Wojciech"]
[Black "Hertlein, Irena"]
[Result "1-0"]
[ECO "B24"]
[WhiteElo "1873"]
[BlackElo "1905"]
[Annotator "NA"]
[PlyCount "71"]
[EventDate "2020.08.15"]
[EventType "swiss"]
[EventCountry "POL"]
[SourceTitle "playchess.com"]
[Source "ChessBase"]
[SourceQuality "1"]
[TimeControl "40/5400+30:1800+30"]

1. e4 {[%emt 0:00:00]} c5 {[%emt 0:00:00]} 2. Nc3 {[%emt 0:00:37]} Nc6 {[%emt 0:00:00]} 3. Bb5 {[%emt 0:00:08]} g6 {[%emt 0:00:09]} 4. Bxc6 {[%emt 0:01:21]} dxc6 {[%emt 0:00:15]} 5. Nge2 {[%emt 0:02:18]} Bg7 {[%emt 0:02:12]} 6. O-O {[%emt 0:00:14]} e5 {[%emt 0:02:08]} 7. d3 {[%emt 0:01:11]} Ne7 {[%emt 0:03:54]} 8. Be3 {[%emt 0:04:40]} b6 {[%emt 0:00:43]} 9. Qd2 {[%emt 0:07:41]} O-O {[%emt 0:06:56]} 10. Ng3 {[%emt 0:08:36]} Be6 {[%emt 0:01:33]} 11. b3 {[%emt 0:01:21]} Qd7 {[%emt 0:04:43]} 12. Rad1 $15 {[%emt 0:05:18]} (12. Bh6 $1 $11) 12... Rad8 {[%emt 0:04:26]} 13. a4 {[%emt 0:09:04]} a5 {[%emt 0:00:55]} 14. Nb1 {[%emt 0:00:54]} f6 {[%emt 0:23:14]} 15. Na3 {[%emt 0:07:08]} g5 {[%emt 0:00:16]} 16. Nc4 {[%emt 0:00:20]} Qc7 {[%emt 0:01:18]} 17. Qe1 {[%emt 0:14:29]} Ng6 {[%emt 0:01:45]} 18. f3 {[%emt 0:03:50]} Nf4 {[%emt 0:03:59]} 19. Bxf4 {[%emt 0:00:47]} gxf4 {[%emt 0:00:01]} 20. Nf5 {[%emt 0:06:01]} Bxf5 {[%emt 0:09:09]} 21. exf5 {[%emt 0:00:07]} Kh8 {[%emt 0:02:57]} 22. g3 {[%emt 0:00:41]} fxg3 {[%emt 0:02:16]} 23. hxg3 {[%emt 0:00:31]} Rg8 {[%emt 0:00:51]} 24. Qe3 {[%emt 0:09:31]} Bf8 {[%emt 0:03:50]} 25. Kf2 {[%emt 0:04:15]} b5 {[%emt 0:03:18]} 26. Nd2 {[%emt 0:01:14]} Rg5 {[%emt 0:05:53]} 27. Ne4 {[%emt 0:05:09]} Rxf5 {[%emt 0:00:34]} 28. g4 {[%emt 0:00:12]} Rf4 {[%emt 0:00:08]} 29. Rh1 {[%emt 0:00:25]} Rd7 {[%emt 0:05:04]} 30. Nxc5 {[%emt 0:02:57]} Bxc5 31. Qxc5 {[%emt 0:00:07]} Qa7 {[%emt 0:04:24]} 32. Qxa7 {[%emt 0:01:16]} Rxa7 {[%emt 0:00:01]} 33. axb5 {[%emt 0:01:21]} cxb5 {[%emt 0:00:01]} 34. Ra1 {[%emt 0:00:55]} Rd4 {[%emt 0:04:45]} 35. Ke3 {[%emt 0:01:24]} Kg7 {[%emt 0:01:28]} 36. c4 {[%emt 0:00:46]} 1-0

[Event "56th Rubinstein Memorial A 2020"]
[Site "Polanica Zdroj"]
[Date "2020.08.19"]
[Round "5.27"]
[White "Rog, Bartlomiej"]
[Black "Bojczewski, Mateusz"]
[Result "1/2-1/2"]
[ECO "B17"]
[WhiteElo "1866"]
[BlackElo "1886"]
[Annotator "NA"]
[PlyCount "79"]
[EventDate "2020.08.15"]
[EventType "swiss"]
[EventCountry "POL"]
[SourceTitle "playchess.com"]
[Source "ChessBase"]
[SourceQuality "1"]
[TimeControl "40/5400+30:1800+30"]

1. e4 {[%emt 0:00:00]} c6 {[%emt 0:00:00]} 2. d4 {[%emt 0:00:30]} d5 {[%emt 0:00:30]} 3. Nc3 {[%emt 0:00:30]} dxe4 {[%emt 0:00:30]} 4. Nxe4 {[%emt 0:00:30]} Nd7 {[%emt 0:00:30]} 5. Ng5 {[%emt 0:01:40]} Ngf6 {[%emt 0:00:30]} 6. Bd3 {[%emt 0:00:30]} e6 {[%emt 0:01:48]} 7. N1f3 {[%emt 0:00:30]} Bd6 {[%emt 0:06:22]} 8. Qe2 {[%emt 0:00:30]} h6 {[%emt 0:00:56]} 9. Ne4 {[%emt 0:00:30]} Nxe4 {[%emt 0:00:30]} 10. Qxe4 {[%emt 0:00:30]} Nf6 {[%emt 0:00:30] 10...Nf6 was played by the boomers.} 11. Qh4 {[%emt 0:02:05]} Qc7 {[%emt 0:09:19] B17: Caro-Kann: Modern Line (4...Nd7).} 12. Bg5 {[%emt 0:08:07]} Nd5 {[%emt 0:03:02]} 13. O-O {[%emt 0:04:32] [#]} Bf4 $146 {[%emt 0:07:32]} ({Predecessor:} 13... b6 14. a3 Bb7 15. c4 Ne7 16. Be3 c5 17. dxc5 Bxc5 18. Bf4 Bd6 19. Bxd6 Qxd6 {1-0 (59) Mader,M (2204)-Duessel,U (2283) Germany 2008}) 14. Bxf4 {[%emt 0:03:31]} Qxf4 {[%emt 0:00:52]} 15. Qxf4 {[%emt 0:02:16]} Nxf4 {[%emt 0:00:30]} 16. Bc4 {[%emt 0:03:22]} b5 {[%emt 0:02:01]} 17. Bb3 {[%emt 0:01:01]} Bb7 {[%emt 0:01:07]} 18. Rfe1 {[%emt 0:01:42]} c5 {[%emt 0:01:16]} 19. dxc5 {[%emt 0:02:19]} Bxf3 {[%emt 0:00:42]} 20. gxf3 $11 {[%emt 0:00:30]} Rc8 {[%emt 0:01:11]} 21. Re4 {[%emt 0:11:52]} g5 {[%emt 0:07:30]} 22. a4 {[%emt 0:07:36]} Rxc5 {[%emt 0:00:55]} 23. axb5 {[%emt 0:00:30]} O-O {[%emt 0:00:30]} 24. Rb4 {[%emt 0:26:49]} Rd8 {[%emt 0:00:55]} 25. b6 {[%emt 0:03:32]} axb6 {[%emt 0:00:58]} 26. Rxb6 {[%emt 0:00:30]} Rd2 {[%emt 0:00:32]} 27. Rf1 {[%emt 0:04:12]} Re5 {[%emt 0:01:23]} 28. Rb4 {[%emt 0:05:39]} Ree2 {[%emt 0:00:39]} 29. Rxf4 {[%emt 0:00:33]} gxf4 {[%emt 0:00:30]} 30. Bc4 {[%emt 0:00:38]} Re5 {[%emt 0:01:51]} 31. Bd3 {[%emt 0:00:30]} Rg5+ {[%emt 0:00:37]} 32. Kh1 {[%emt 0:00:30]} Kf8 {[%emt 0:00:47]} 33. b4 {[%emt 0:01:08]} Ke7 {[%emt 0:00:30]} 34. b5 {[%emt 0:01:13]} Rxd3 {[%emt 0:00:30]} 35. cxd3 Rxb5 {[%emt 0:00:30]} 36. Re1 {[%emt 0:03:04]} Rg5 {[%emt 0:01:09]} 37. Re4 {[%emt 0:00:30]} e5 {[%emt 0:00:30]} 38. d4 {[%emt 0:00:51]} f6 {[%emt 0:00:30]} 39. dxe5 {[%emt 0:00:30]} fxe5 {[%emt 0:00:30]} 40. Ra4 {[%emt 0:00:30]} 1/2-1/2

[Event "56th Rubinstein Memorial A 2020"]
[Site "Polanica Zdroj"]
[Date "2020.08.20"]
[Round "6.2"]
[White "Cukrowski, Filip"]
[Black "Sabuk, Piotr"]
[Result "0-1"]
[ECO "A20"]
[WhiteElo "2419"]
[BlackElo "2377"]
[Annotator "ChessBase"]
[PlyCount "81"]
[EventDate "2020.08.15"]
[EventType "swiss"]
[EventCountry "POL"]
[SourceTitle "playchess.com"]
[Source "ChessBase"]
[SourceQuality "1"]
[TimeControl "40/5400+30:1800+30"]

1. c4 {[%emt 0:06:00]} e5 {[%emt 0:02:09]} 2. g3 {[%emt 0:01:33]} Nf6 {[%emt 0:01:08]} 3. Bg2 {[%emt 0:00:22]} d5 {[%emt 0:01:15]} 4. cxd5 {[%emt 0:00:07]} Nxd5 {[%emt 0:00:06]} 5. Nc3 {[%emt 0:00:08]} Nxc3 {[%emt 0:03:15]} 6. bxc3 {[%emt 0:00:55]} Nc6 {[%emt 0:00:07]} 7. Bb2 {[%emt 0:03:47]} Bc5 {[%emt 0:03:37]} 8. d4 {[%emt 0:21:50]} exd4 {[%emt 0:02:52]} 9. cxd4 {[%emt 0:00:10]} Nxd4 {[%emt 0:05:53]} 10. Rc1 {[%emt 0:08:25]} Bb6 {[%emt 0:10:16]} 11. Bxd4 {[%emt 0:15:43]} Bxd4 {[%emt 0:02:14]} 12. Qa4+ {[%emt 0:00:05]} c6 {[%emt 0:01:51]} 13. Rd1 {[%emt 0:00:06]} Bc3+ {[%emt 0:00:53]} 14. Kf1 {[%emt 0:00:05]} Qf6 {[%emt 0:02:58]} 15. Qa3 {[%emt 0:00:05]} a5 {[%emt 0:02:18]} 16. Nf3 {[%emt 0:03:17]} h6 {[%emt 0:07:46]} 17. Rb1 {[%emt 0:04:41]} Rb8 {[%emt 0:09:42]} 18. h4 {[%emt 0:06:58]} Be6 {[%emt 0:02:02]} 19. Nd2 {[%emt 0:07:56]} Bb4 {[%emt 0:05:07]} 20. Qe3 {[%emt 0:00:08]} Rd8 {[%emt 0:03:35]} 21. Nb3 {[%emt 0:06:00]} O-O {[%emt 0:01:14]} 22. Bf3 {[%emt 0:01:46]} Bf5 {[%emt 0:04:21]} 23. Kg2 {[%emt 0:03:13]} Bxb1 {[%emt 0:04:28]} 24. Rxb1 {[%emt 0:00:01]} Rfe8 {[%emt 0:00:42]} 25. Qb6 {[%emt 0:00:27]} Qf5 {[%emt 0:02:12]} 26. Rc1 {[%emt 0:04:55]} Qb5 {[%emt 0:05:09]} 27. Qxb5 {[%emt 0:00:19]} cxb5 {[%emt 0:00:01]} 28. e3 {[%emt 0:00:08]} Rc8 {[%emt 0:01:21]} 29. Rb1 {[%emt 0:00:07]} Rc2 {[%emt 0:01:23]} 30. a3 {[%emt 0:00:08]} Bxa3 {[%emt 0:04:30]} 31. Nxa5 {[%emt 0:00:06]} b4 {[%emt 0:01:41]} 32. Rd1 {[%emt 0:03:17]} Bc1 {[%emt 0:02:00]} 33. Kf1 {[%emt 0:01:06]} b6 {[%emt 0:01:34]} 34. Nb3 {[%emt 0:00:10]} Bb2 {[%emt 0:00:44]} 35. Rd7 {[%emt 0:00:12]} Bf6 {[%emt 0:05:07]} 36. Bd5 {[%emt 0:01:00]} Be7 {[%emt 0:01:51]} 37. Rb7 {[%emt 0:01:03]} Rd8 {[%emt 0:00:30]} 38. e4 {[%emt 0:01:54]} Bc5 {[%emt 0:00:13]} 39. f4 {[%emt 0:00:21]} Rb2 {[%emt 0:00:36]} 40. Nxc5 {[%emt 0:00:00]} bxc5 {[%emt 0:00:00]} 41. Rc7 0-1

[Event "56th Rubinstein Memorial A 2020"]
[Site "Polanica Zdroj"]
[Date "2020.08.20"]
[Round "6.4"]
[White "Chomczyk, Marek"]
[Black "Butkiewicz, Lukasz"]
[Result "1/2-1/2"]
[ECO "A01"]
[WhiteElo "2221"]
[BlackElo "2400"]
[Annotator "ChessBase"]
[PlyCount "118"]
[EventDate "2020.08.15"]
[EventType "swiss"]
[EventCountry "POL"]
[SourceTitle "playchess.com"]
[Source "ChessBase"]
[SourceQuality "1"]
[TimeControl "40/5400+30:1800+30"]

1. b3 {[%emt 0:00:00]} e5 {[%emt 0:00:51]} 2. Bb2 {[%emt 0:00:00]} Nc6 {[%emt 0:00:04]} 3. Nf3 {[%emt 0:00:09]} d6 {[%emt 0:04:23]} 4. d4 {[%emt 0:09:43]} exd4 {[%emt 0:07:30]} 5. Nxd4 {[%emt 0:00:16]} Nf6 {[%emt 0:00:10]} 6. e3 {[%emt 0:05:04]} Be7 {[%emt 0:01:47]} 7. Bb5 {[%emt 0:01:22]} Bd7 {[%emt 0:01:27]} 8. Nxc6 {[%emt 0:04:34]} bxc6 {[%emt 0:00:29]} 9. Be2 {[%emt 0:06:20]} c5 {[%emt 0:02:56]} 10. Nc3 {[%emt 0:04:09]} O-O {[%emt 0:01:04]} 11. O-O {[%emt 0:00:37]} c6 {[%emt 0:04:31]} 12. e4 {[%emt 0:05:24]} Ne8 {[%emt 0:03:48]} 13. Na4 {[%emt 0:03:05]} Nc7 {[%emt 0:03:19]} 14. Bg4 {[%emt 0:03:42]} Be6 {[%emt 0:03:29]} 15. c4 {[%emt 0:01:12]} Qc8 {[%emt 0:08:38]} 16. Bxe6 {[%emt 0:03:05]} Qxe6 {[%emt 0:00:12]} 17. Qf3 {[%emt 0:00:13]} Rfe8 {[%emt 0:09:16]} 18. Rfe1 {[%emt 0:09:00]} Bf8 {[%emt 0:02:25]} 19. Re3 {[%emt 0:01:04]} Rad8 {[%emt 0:02:02]} 20. Qf4 {[%emt 0:03:12]} Qe7 {[%emt 0:07:04]} 21. Qg4 {[%emt 0:08:12]} Ne6 {[%emt 0:01:13]} 22. e5 {[%emt 0:06:24]} d5 {[%emt 0:02:31]} 23. f4 {[%emt 0:00:12]} Nd4 {[%emt 0:06:22]} 24. Rf1 {[%emt 0:00:57]} f5 {[%emt 0:01:18]} 25. Qd1 {[%emt 0:01:43]} Ne6 {[%emt 0:01:21]} 26. g4 {[%emt 0:05:00]} Qf7 {[%emt 0:02:47]} 27. Rg3 {[%emt 0:03:42]} g6 {[%emt 0:05:03]} 28. Qc2 {[%emt 0:00:12]} Ng7 {[%emt 0:01:18]} 29. cxd5 {[%emt 0:01:45]} cxd5 {[%emt 0:00:08]} 30. h3 {[%emt 0:01:11]} Rc8 {[%emt 0:01:11]} 31. Nc3 {[%emt 0:01:29]} d4 {[%emt 0:00:46]} 32. Nb5 {[%emt 0:01:12]} Kh8 {[%emt 0:00:54]} 33. Qg2 {[%emt 0:07:21]} Qd7 {[%emt 0:01:39]} 34. Na3 {[%emt 0:00:43]} Be7 {[%emt 0:00:20]} 35. Nc4 {[%emt 0:00:31]} Rf8 {[%emt 0:00:55]} 36. Rd3 {[%emt 0:01:21]} Ne6 {[%emt 0:01:57]} 37. Bc1 {[%emt 0:01:22]} Nc7 {[%emt 0:02:02]} 38. Bb2 {[%emt 0:02:29]} Qe6 {[%emt 0:01:16]} 39. g5 {[%emt 0:00:16]} Nd5 {[%emt 0:00:36]} 40. h4 {[%emt 0:00:00]} h5 {[%emt 0:00:00]} 41. Kh2 {[%emt 0:05:01]} Rc7 {[%emt 0:10:33]} 42. Kg3 {[%emt 0:03:24]} Rb8 {[%emt 0:01:33]} 43. Ra1 {[%emt 0:02:19]} Nb4 {[%emt 0:01:47]} 44. Rf3 {[%emt 0:00:59]} Rc6 {[%emt 0:01:51]} 45. Ba3 {[%emt 0:01:20]} Nd5 {[%emt 0:00:16]} 46. Bc1 {[%emt 0:03:28]} Ra6 {[%emt 0:03:20]} 47. Qe2 {[%emt 0:01:22]} Nc3 {[%emt 0:03:04]} 48. Qc2 {[%emt 0:01:17]} Nd5 {[%emt 0:03:12]} 49. Bd2 {[%emt 0:00:58]} Kh7 {[%emt 0:04:33]} 50. Nb2 {[%emt 0:02:23]} Rc6 {[%emt 0:00:54]} 51. Nc4 {[%emt 0:00:58]} Ra6 {[%emt 0:00:37]} 52. Nb2 {[%emt 0:00:09]} Rc8 {[%emt 0:00:08]} 53. Qc4 {[%emt 0:01:21]} Nc7 {[%emt 0:00:55]} 54. Kf2 {[%emt 0:00:28]} Qxc4 {[%emt 0:00:38]} 55. Nxc4 {[%emt 0:00:23]} Kg8 {[%emt 0:00:06]} 56. Ke2 {[%emt 0:00:32]} Kf7 {[%emt 0:00:08]} 57. Kd3 {[%emt 0:00:37]} Ke6 {[%emt 0:00:14]} 58. Rff1 {[%emt 0:00:15]} Kd5 {[%emt 0:02:20]} 59. Rfe1 {[%emt 0:01:12]} Ne6 {[%emt 0:01:01]} 1/2-1/2

[Event "56th Rubinstein Memorial A 2020"]
[Site "Polanica Zdroj"]
[Date "2020.08.20"]
[Round "6.5"]
[White "Luch, Michal"]
[Black "Kowalczyk, Rafal"]
[Result "1-0"]
[ECO "E34"]
[WhiteElo "2409"]
[BlackElo "2268"]
[Annotator "ChessBase"]
[PlyCount "64"]
[EventDate "2020.08.15"]
[EventType "swiss"]
[EventCountry "POL"]
[SourceTitle "playchess.com"]
[Source "ChessBase"]
[SourceQuality "1"]
[TimeControl "40/5400+30:1800+30"]

1. d4 {[%emt 0:00:00]} Nf6 {[%emt 0:04:23]} 2. c4 {[%emt 0:00:00]} e6 {[%emt 0:00:13]} 3. Nc3 {[%emt 0:00:00]} Bb4 {[%emt 0:01:58]} 4. Qc2 {[%emt 0:00:00]} d5 {[%emt 0:02:11]} 5. cxd5 {[%emt 0:00:00]} Qxd5 {[%emt 0:03:20]} 6. e3 {[%emt 0:00:11]} c5 {[%emt 0:19:28]} 7. Bd2 {[%emt 0:00:03]} Bxc3 {[%emt 0:00:28]} 8. Bxc3 {[%emt 0:00:12]} cxd4 {[%emt 0:07:59]} 9. Bxd4 {[%emt 0:00:02]} Nc6 {[%emt 0:00:17]} 10. Bc3 {[%emt 0:00:38]} e5 {[%emt 0:02:56]} 11. Nf3 {[%emt 0:00:15]} Bg4 {[%emt 0:03:37]} 12. Be2 {[%emt 0:00:06]} O-O {[%emt 0:01:36]} 13. O-O {[%emt 0:03:30]} e4 {[%emt 0:06:24]} 14. Nd4 {[%emt 0:01:05]} Rac8 {[%emt 0:00:36]} 15. Rfd1 {[%emt 0:05:59]} Rfd8 {[%emt 0:14:29]} 16. Bxg4 {[%emt 0:23:29]} Nxg4 {[%emt 0:00:32]} 17. h3 {[%emt 0:00:07]} Nf6 {[%emt 0:12:04]} 18. Qa4 {[%emt 0:00:08]} Ne5 {[%emt 0:05:22]} 19. Ne2 {[%emt 0:15:31]} Nd3 {[%emt 0:03:43]} 20. Ng3 {[%emt 0:13:37]} Qc4 {[%emt 0:05:05]} 21. Qxa7 {[%emt 0:03:07]} b5 {[%emt 0:02:14]} 22. Bxf6 {[%emt 0:03:33]} gxf6 {[%emt 0:00:14]} 23. Qe7 {[%emt 0:00:07]} Qe6 {[%emt 0:01:39]} 24. Qxe6 {[%emt 0:02:30]} fxe6 {[%emt 0:00:02]} 25. Nxe4 {[%emt 0:00:05]} Kf7 {[%emt 0:01:08]} 26. Rd2 {[%emt 0:00:39]} f5 {[%emt 0:00:06]} 27. Ng5+ {[%emt 0:01:45]} Ke7 {[%emt 0:00:14]} 28. Nxe6 {[%emt 0:02:46]} Kxe6 {[%emt 0:00:17]} 29. Rad1 {[%emt 0:00:05]} Ke5 {[%emt 0:01:18]} 30. Rxd3 {[%emt 0:00:08]} Rxd3 {[%emt 0:00:05]} 31. Rxd3 {[%emt 0:00:02]} Rc1+ {[%emt 0:00:07]} 32. Kh2 {[%emt 0:00:38]} Rc2 {[%emt 0:00:00]} 1-0

[Event "56th Rubinstein Memorial A 2020"]
[Site "Polanica Zdroj"]
[Date "2020.08.20"]
[Round "6.6"]
[White "Goluch, Piotr"]
[Black "Dahl, Christoph"]
[Result "1/2-1/2"]
[ECO "E90"]
[WhiteElo "2376"]
[BlackElo "2228"]
[Annotator "ChessBase"]
[PlyCount "111"]
[EventDate "2020.08.15"]
[EventType "swiss"]
[EventCountry "POL"]
[SourceTitle "playchess.com"]
[Source "ChessBase"]
[SourceQuality "1"]
[TimeControl "40/5400+30:1800+30"]

1. d4 {[%emt 0:00:00]} Nf6 {[%emt 0:00:00]} 2. c4 {[%emt 0:00:00]} g6 {[%emt 0:00:08]} 3. Nc3 {[%emt 0:00:06]} Bg7 {[%emt 0:00:27]} 4. e4 {[%emt 0:00:11]} d6 {[%emt 0:00:39]} 5. Nf3 {[%emt 0:00:06]} O-O {[%emt 0:00:25]} 6. h3 {[%emt 0:00:06]} e5 {[%emt 0:00:52]} 7. d5 {[%emt 0:00:07]} Nh5 {[%emt 0:00:45]} 8. g3 {[%emt 0:06:06]} f5 {[%emt 0:01:50]} 9. Be2 {[%emt 0:01:57]} fxe4 {[%emt 0:02:30]} 10. Nxe4 {[%emt 0:01:42]} Nf6 {[%emt 0:01:39]} 11. Bg5 {[%emt 0:00:35]} Qe8 {[%emt 0:02:04]} 12. Bxf6 {[%emt 0:00:58]} Bxf6 {[%emt 0:00:12]} 13. h4 {[%emt 0:10:34]} Bf5 {[%emt 0:06:05]} 14. Nfd2 {[%emt 0:01:59]} Qe7 {[%emt 0:05:48]} 15. Qb3 {[%emt 0:14:30]} Nd7 {[%emt 0:12:05]} 16. Qe3 {[%emt 0:08:54]} Bxe4 {[%emt 0:04:18]} 17. Nxe4 {[%emt 0:00:07]} Nc5 {[%emt 0:01:14]} 18. Nxc5 {[%emt 0:00:55]} dxc5 {[%emt 0:00:07]} 19. Qe4 {[%emt 0:00:04]} Bg7 {[%emt 0:13:41]} 20. Bg4 {[%emt 0:02:43]} Qf6 {[%emt 0:02:38]} 21. O-O {[%emt 0:02:10]} Rad8 {[%emt 0:03:47]} 22. Kg2 {[%emt 0:02:11]} Kh8 {[%emt 0:02:23]} 23. Rae1 {[%emt 0:00:53]} a6 {[%emt 0:11:36]} 24. Re2 {[%emt 0:00:35]} Qd6 {[%emt 0:01:51]} 25. Be6 {[%emt 0:00:54]} Rde8 {[%emt 0:01:38]} 26. Rh1 {[%emt 0:04:43]} c6 {[%emt 0:03:02]} 27. h5 {[%emt 0:02:47]} g5 {[%emt 0:00:15]} 28. h6 {[%emt 0:05:27]} Bf6 {[%emt 0:00:09]} 29. Rh5 {[%emt 0:05:11]} Qc7 {[%emt 0:04:30]} 30. Qg4 {[%emt 0:01:08]} cxd5 {[%emt 0:02:01]} 31. cxd5 {[%emt 0:00:18]} Qe7 {[%emt 0:02:58]} 32. Qf5 {[%emt 0:00:16]} b5 {[%emt 0:01:20]} 33. Rxe5 {[%emt 0:00:29]} Bxe5 {[%emt 0:00:26]} 34. Qxe5+ {[%emt 0:00:02]} Qf6 {[%emt 0:00:10]} 35. Rxg5 {[%emt 0:00:40]} Qxe5 {[%emt 0:00:23]} 36. Rxe5 {[%emt 0:00:02]} Rf6 {[%emt 0:00:34]} 37. Rh5 {[%emt 0:05:00]} c4 {[%emt 0:01:59]} 38. g4 {[%emt 0:01:00]} b4 {[%emt 0:02:18]} 39. Rh1 {[%emt 0:09:32]} Ref8 {[%emt 0:01:47]} 40. Bf5 {[%emt 0:00:00]} Rd8 {[%emt 0:00:00]} 41. Be4 {[%emt 0:09:12]} Rc8 {[%emt 0:07:40]} 42. g5 {[%emt 0:00:07]} Rg8 {[%emt 0:00:07]} 43. Rh5 {[%emt 0:01:26]} c3 {[%emt 0:07:17]} 44. bxc3 {[%emt 0:00:12]} bxc3 {[%emt 0:00:04]} 45. Kg3 {[%emt 0:00:35]} Rf7 {[%emt 0:02:35]} 46. f3 {[%emt 0:04:58]} Rc7 {[%emt 0:02:18]} 47. Rh2 {[%emt 0:02:59]} Rxg5+ {[%emt 0:00:59]} 48. Kf4 {[%emt 0:00:03]} Rxd5 {[%emt 0:03:51]} 49. Bxd5 {[%emt 0:02:29]} c2 {[%emt 0:00:04]} 50. Rxc2 {[%emt 0:00:07]} Rxc2 {[%emt 0:00:03]} 51. Kg4 {[%emt 0:01:41]} Rd2 {[%emt 0:00:53]} 52. Bf7 {[%emt 0:02:00]} a5 {[%emt 0:00:08]} 53. f4 {[%emt 0:00:15]} a4 {[%emt 0:00:18]} 54. f5 {[%emt 0:00:43]} a3 {[%emt 0:00:09]} 55. Kg5 {[%emt 0:00:15]} Rxa2 {[%emt 0:00:28]} 56. Bxa2 {[%emt 0:00:04]} 1/2-1/2

[Event "56th Rubinstein Memorial A 2020"]
[Site "Polanica Zdroj"]
[Date "2020.08.20"]
[Round "6.7"]
[White "Marszalek, Maciej"]
[Black "Golecki, Jan"]
[Result "1-0"]
[ECO "A13"]
[WhiteElo "2315"]
[BlackElo "2106"]
[Annotator "ChessBase"]
[PlyCount "83"]
[EventDate "2020.08.15"]
[EventType "swiss"]
[EventCountry "POL"]
[SourceTitle "playchess.com"]
[Source "ChessBase"]
[SourceQuality "1"]
[TimeControl "40/5400+30:1800+30"]

1. c4 {[%emt 0:00:00]} e6 {[%emt 0:00:27]} 2. g3 {[%emt 0:00:00]} d5 {[%emt 0:00:08]} 3. Bg2 {[%emt 0:00:00]} Nf6 {[%emt 0:01:23]} 4. Nf3 {[%emt 0:00:02]} d4 {[%emt 0:00:41]} 5. d3 {[%emt 0:00:43]} c5 {[%emt 0:00:37]} 6. e3 {[%emt 0:01:06]} Nc6 {[%emt 0:00:50]} 7. exd4 {[%emt 0:00:08]} cxd4 {[%emt 0:00:14]} 8. O-O {[%emt 0:00:12]} Bd6 {[%emt 0:01:11]} 9. a3 {[%emt 0:00:51]} a5 {[%emt 0:00:07]} 10. Re1 {[%emt 0:00:45]} O-O {[%emt 0:02:01]} 11. Bg5 {[%emt 0:03:45]} e5 {[%emt 0:04:25]} 12. Nbd2 {[%emt 0:00:54]} Bf5 {[%emt 0:00:54]} 13. c5 {[%emt 0:03:26]} Bc7 {[%emt 0:15:21]} 14. Nh4 {[%emt 0:02:05]} Bxd3 {[%emt 0:07:23]} 15. Qb3 {[%emt 0:03:00]} Ba6 {[%emt 0:01:25]} 16. Ne4 {[%emt 0:00:54]} d3 {[%emt 0:02:13]} 17. Bxf6 {[%emt 0:14:57]} gxf6 {[%emt 0:00:25]} 18. Nf5 {[%emt 0:00:55]} Nd4 {[%emt 0:02:31]} 19. Nxd4 {[%emt 0:00:08]} Qxd4 {[%emt 0:00:31]} 20. Nxf6+ {[%emt 0:00:51]} Kg7 {[%emt 0:01:33]} 21. Nd5 {[%emt 0:11:45]} Bd8 {[%emt 0:08:57]} 22. Qc3 {[%emt 0:16:59]} Qxc3 {[%emt 0:05:46]} 23. Nxc3 {[%emt 0:01:30]} Bf6 {[%emt 0:00:27]} 24. Be4 {[%emt 0:00:38]} Bg5 {[%emt 0:00:32]} 25. Bf5 {[%emt 0:05:49]} Bd2 {[%emt 0:12:34]} 26. Rxe5 {[%emt 0:02:45]} Bxc3 {[%emt 0:00:05]} 27. bxc3 {[%emt 0:00:05]} Kf6 {[%emt 0:00:36]} 28. Rd5 {[%emt 0:02:07]} Rfd8 {[%emt 0:00:34]} 29. Bd7 {[%emt 0:00:08]} Ra7 {[%emt 0:05:43]} 30. Rd4 {[%emt 0:00:49]} b6 {[%emt 0:04:00]} 31. c6 {[%emt 0:00:22]} Bc8 {[%emt 0:01:25]} 32. Rd1 {[%emt 0:09:47]} Ba6 {[%emt 0:00:04]} 33. f3 {[%emt 0:04:46]} Rc7 {[%emt 0:00:08]} 34. Rb1 {[%emt 0:01:14]} b5 {[%emt 0:00:26]} 35. Rd1 {[%emt 0:02:12]} Kg7 {[%emt 0:00:27]} 36. Kf2 {[%emt 0:00:10]} b4 {[%emt 0:01:47]} 37. axb4 {[%emt 0:02:05]} axb4 {[%emt 0:00:02]} 38. Rxb4 {[%emt 0:00:33]} Bc8 {[%emt 0:00:24]} 39. Rb8 {[%emt 0:00:12]} d2 {[%emt 0:01:07]} 40. Rxd2 {[%emt 0:00:00]} Rxc6 {[%emt 0:00:00]} 41. Bxc6 {[%emt 0:00:37]} Rxd2+ {[%emt 0:00:17]} 42. Ke3 {[%emt 0:00:04]} 1-0

[Event "56th Rubinstein Memorial A 2020"]
[Site "Polanica Zdroj"]
[Date "2020.08.20"]
[Round "6.8"]
[White "Sernecki, Franciszek"]
[Black "Jaskolka, Tomasz"]
[Result "1/2-1/2"]
[ECO "D91"]
[WhiteElo "2243"]
[BlackElo "2196"]
[Annotator "ChessBase"]
[PlyCount "42"]
[EventDate "2020.08.15"]
[EventType "swiss"]
[EventCountry "POL"]
[SourceTitle "playchess.com"]
[Source "ChessBase"]
[SourceQuality "1"]
[TimeControl "40/5400+30:1800+30"]

1. d4 {[%emt 0:00:00]} Nf6 {[%emt 0:00:20]} 2. c4 {[%emt 0:00:00]} g6 {[%emt 0:00:12]} 3. Nc3 {[%emt 0:00:14]} d5 {[%emt 0:00:04]} 4. Nf3 {[%emt 0:00:11]} Bg7 {[%emt 0:00:20]} 5. Bg5 {[%emt 0:00:07]} Ne4 {[%emt 0:01:05]} 6. h4 {[%emt 0:00:05]} c5 {[%emt 0:00:05]} 7. e3 {[%emt 0:00:04]} cxd4 {[%emt 0:06:02]} 8. exd4 {[%emt 0:00:47]} Nxc3 {[%emt 0:00:16]} 9. bxc3 {[%emt 0:00:16]} Nc6 {[%emt 0:01:21]} 10. cxd5 {[%emt 0:02:51]} Qxd5 {[%emt 0:00:33]} 11. Be2 {[%emt 0:00:13]} e5 {[%emt 0:12:02]} 12. c4 {[%emt 0:11:20]} Qa5+ {[%emt 0:01:38]} 13. Bd2 {[%emt 0:01:51]} Qa3 {[%emt 0:00:35]} 14. d5 {[%emt 0:08:18]} Nd4 {[%emt 0:01:29]} 15. Nxd4 {[%emt 0:04:17]} exd4 {[%emt 0:00:08]} 16. Rb1 {[%emt 0:03:21]} Bf5 {[%emt 0:21:51]} 17. Bb4 {[%emt 0:12:47]} Qxa2 {[%emt 0:02:58]} 18. Bd3 {[%emt 0:01:45]} a5 {[%emt 0:10:37]} 19. Ra1 {[%emt 0:21:40]} Qb2 {[%emt 0:00:35]} 20. Rb1 {[%emt 0:01:58]} Qa2 {[%emt 0:00:13]} 21. Ra1 {[%emt 0:02:46]} Qb2 {[%emt 0:00:16]} 1/2-1/2